Workbook

Sheet Sheet1
A1: 城市客运客运量分市州1-6月累计情况
A2: 单位：万人次
B3: 城市客运总量 | G3: 城市公交城市客运量 | L3: 巡游出租城市客运量 | Q3: 网约车城市客运量 | V3: 轨道客运量 | X3: 轮渡客运量
B4: 城市总客运量 | C4: 排名 | D4: 占全省比例 | E4: 增速 | F4: 增速排名 | G4: 其中：公交 | H4: 排名 | I4: 占全省比例 | J4: 增速 | K4: 增速排名 | L4: 其中：出租 | M4: 排名 | N4: 占全省比例 | O4: 增速 | P4: 增速排名 | Q4: 其中：出租 | R4: 排名 | S4: 占全省比例 | T4: 增速 | U4: 增速排名 | V4: 其中：轨道 | W4: 增速 | X4: 其中：轮渡 | Y4: 增速
A5: 全省 | B5: =G5+L5+Q5+V5+X5 -> 30612.85 | G5: =SUM(G6:G22) -> 12974.73 | L5: =SUM(L6:L22) -> 5860.24 | Q5: =SUM(Q6:Q22) -> 0.00 | V5: 11731.83 | X5: 46.05
A6: 武汉 | B6: 17060.44 | C6: =RANK(B6,B$6:B$22) -> 1 | D6: =B6/B$5 -> 55.73% | F6: =RANK(E6,E$6:E$22) -> 1 | G6: 4218.74 | H6: =RANK(G6,G$6:G$22) -> 1 | I6: =G6/G$5 -> 32.52% | K6: =RANK(J6,J$6:J$22) -> 1 | L6: 1093.91 | M6: =RANK(L6,L$6:L$22) -> 1 | N6: =L6/L$5 -> 18.67% | P6: =RANK(O6,O$6:O$22) -> 1 | R6: =RANK(Q6,Q$6:Q$22) -> 1 | S6: =Q6/Q$5 ->  | U6: =RANK(T6,T$6:T$22) -> 1 | V6: 11701.74 | X6: 46.05
A7: 黄石 | B7: 1254.80 | C7: =RANK(B7,B$6:B$22) -> 6 | D7: =B7/B$5 -> 4.10% | F7: 1 | G7: 941.69 | H7: 5 | I7: =G7/G$5 -> 7.26% | K7: 1 | L7: 283.02 | M7: 10 | N7: 4.83% | P7: 1 | R7: 1 | U7: 1 | V7: 30.09
A8: 十堰 | B8: 1526.23 | C8: 4 | D8: 4.99% | F8: 1 | G8: 1225.52 | H8: 3 | I8: 9.45% | K8: 1 | L8: 300.71 | M8: 8 | N8: 5.13% | P8: 1 | R8: 1 | U8: 1
A9: 宜昌 | B9: 1806.18 | C9: 2 | D9: 5.90% | F9: 1 | G9: 995.29 | H9: 4 | I9: 7.67% | K9: 1 | L9: 810.89 | M9: 2 | N9: 13.84% | P9: 1 | R9: 1 | U9: 1
A10: 襄阳 | B10: 1701.10 | C10: 3 | D10: 5.56% | F10: 1 | G10: 1334.93 | H10: 2 | I10: 10.29% | K10: 1 | L10: 366.17 | M10: 6 | N10: 6.25% | P10: 1 | R10: 1 | U10: 1
A11: 鄂州 | B11: 221.13 | C11: 14 | D11: 0.72% | F11: 1 | G11: 185.99 | H11: 13 | I11: 1.43% | K11: 1 | L11: 35.14 | M11: 16 | N11: 0.60% | P11: 1 | R11: 1 | U11: 1
A12: 荆门 | B12: 839.56 | C12: 11 | D12: 2.74% | F12: 1 | G12: 540.43 | H12: 9 | I12: 4.17% | K12: 1 | L12: 299.13 | M12: 9 | N12: 5.10% | P12: 1 | R12: 1 | U12: 1
A13: 孝感 | B13: 923.53 | C13: 9 | D13: 3.02% | F13: 1 | G13: 459.96 | H13: 11 | I13: 3.55% | K13: 1 | L13: 463.57 | M13: 5 | N13: 7.91% | P13: 1 | R13: 1 | U13: 1
A14: 荆州 | B14: 1418.46 | C14: 5 | D14: 4.63% | F14: 1 | G14: 711.12 | H14: 6 | I14: 5.48% | K14: 1 | L14: 707.34 | M14: 3 | N14: 12.07% | P14: 1 | R14: 1 | U14: 1
A15: 黄冈 | B15: 944.74 | C15: 8 | D15: 3.09% | F15: 1 | G15: 602.34 | H15: 8 | I15: 4.64% | K15: 1 | L15: 342.40 | M15: 7 | N15: 5.84% | P15: 1 | R15: 1 | U15: 1
A16: 咸宁 | B16: 852.81 | C16: 10 | D16: 2.79% | F16: 1 | G16: 620.62 | H16: 7 | I16: 4.78% | K16: 1 | L16: 232.19 | M16: 11 | N16: 3.96% | P16: 1 | R16: 1 | U16: 1
A17: 随州 | B17: 323.20 | C17: 12 | D17: 1.06% | F17: 1 | G17: 151.00 | H17: 14 | I17: 1.16% | K17: 1 | L17: 172.20 | M17: 12 | N17: 2.94% | P17: 1 | R17: 1 | U17: 1
A18: 恩施 | B18: 1018.29 | C18: 7 | D18: 3.33% | F18: 1 | G18: 505.93 | H18: 10 | I18: 3.90% | K18: 1 | L18: 512.36 | M18: 4 | N18: 8.74% | P18: 1 | R18: 1 | U18: 1
A19: 仙桃 | B19: 205.39 | C19: 15 | D19: 0.67% | F19: 1 | G19: 138.55 | H19: 15 | I19: 1.07% | K19: 1 | L19: 66.84 | M19: 15 | N19: 1.14% | P19: 1 | R19: 1 | U19: 1
A20: 潜江 | B20: 305.89 | C20: 13 | D20: 1.00% | F20: 1 | G20: 215.68 | H20: 12 | I20: 1.66% | K20: 1 | L20: 90.21 | M20: 13 | N20: 1.54% | P20: 1 | R20: 1 | U20: 1
A21: 天门 | B21: 183.95 | C21: 16 | D21: 0.60% | F21: 1 | G21: 115.84 | H21: 16 | I21: 0.89% | K21: 1 | L21: 68.11 | M21: 14 | N21: 1.16% | P21: 1 | R21: 1 | U21: 1
A22: 林区 | B22: 27.15 | C22: 17 | D22: 0.09% | F22: 1 | G22: 11.10 | H22: 17 | I22: 0.09% | K22: 1 | L22: 16.05 | M22: 17 | N22: 0.27% | P22: 1 | R22: 1 | U22: 1
A23: 城市客运客运周转量分市州1-6月累计情况
A24: 单位：万人次公里
B25: 城市客运总周转量 | G25: 城市公交客运周转量 | L25: 巡游出租城市客运周转量 | Q25: 网约车城市客运周转量 | V25: 轨道客运周转量 | X25: 轮渡客运周转量
B26: 城市总客运周转量 | C26: 排名 | D26: 占全省比例 | E26: 增速 | F26: 增速排名 | G26: 其中：公交 | H26: 排名 | I26: 占全省比例 | J26: 增速 | K26: 增速排名 | L26: 其中：出租 | M26: 排名 | N26: 占全省比例 | O26: 增速 | P26: 增速排名 | Q26: 其中：网约车 | R26: 排名 | S26: 占全省比例 | T26: 增速 | U26: 增速排名 | V26: 其中：轨道 | W26: 增速 | X26: 其中：轮渡 | Y26: 增速
A27: 全省 | B27: =G27+L27+Q27+V27+X27 -> 218186.08 | G27: 87147.68 | L27: =SUM(L28:L44) -> 34236.60 | Q27: =SUM(Q28:Q44) -> 0.00 | V27: 96645.23 | X27: 156.57
A28: 武汉 | B28: 127346.72 | C28: =RANK(B28,B$28:B$44) -> 1 | D28: =B28/B$27 -> 58.37% | F28: 1 | G28: 22416.79 | H28: 1 | I28: =G28/G$27 -> 25.72% | K28: =RANK(J28,J$28:J$44) -> 1 | L28: 8532.50 | M28: =RANK(L28,L$28:L$44) -> 1 | N28: =L28/L$27 -> 24.92% | P28: =RANK(O28,O$28:O$44) -> 1 | R28: =RANK(Q28,Q$28:Q$44) -> 1 | S28: =Q28/Q$27 ->  | U28: =RANK(T28,T$28:T$44) -> 1 | V28: 96240.86 | X28: 156.57
A29: 黄石 | B29: 9098.59 | C29: 5 | D29: =B29/B$27 -> 4.17% | F29: 1 | G29: 7279.12 | H29: 5 | I29: 8.35% | K29: 1 | L29: 1415.10 | M29: 9 | N29: 4.13% | P29: 1 | R29: 1 | U29: 1 | V29: 404.37
A30: 十堰 | B30: 9371.26 | C30: 4 | D30: 4.30% | F30: 1 | G30: 7503.85 | H30: 4 | I30: 8.61% | K30: 1 | L30: 1867.41 | M30: 8 | N30: 5.45% | P30: 1 | R30: 1 | U30: 1
A31: 宜昌 | B31: 8029.69 | C31: 6 | D31: 3.68% | F31: 1 | G31: 3975.24 | H31: 9 | I31: 4.56% | K31: 1 | L31: 4054.45 | M31: 2 | N31: 11.84% | P31: 1 | R31: 1 | U31: 1
A32: 襄阳 | B32: 10902.16 | C32: 2 | D32: 5.00% | F32: 1 | G32: 8785.70 | H32: 2 | I32: 10.08% | K32: 1 | L32: 2116.46 | M32: 6 | N32: 6.18% | P32: 1 | R32: 1 | U32: 1
A33: 鄂州 | B33: 1345.53 | C33: 16 | D33: 0.62% | F33: 1 | G33: 1160.69 | H33: 14 | I33: 1.33% | K33: 1 | L33: 184.84 | M33: 16 | N33: 0.54% | P33: 1 | R33: 1 | U33: 1
A34: 荆门 | B34: 4126.39 | C34: 11 | D34: 1.89% | F34: 1 | G34: 2780.30 | H34: 11 | I34: 3.19% | K34: 1 | L34: 1346.09 | M34: 10 | N34: 3.93% | P34: 1 | R34: 1 | U34: 1
A35: 孝感 | B35: 7389.39 | C35: 9 | D35: 3.39% | F35: 1 | G35: 4978.83 | H35: 7 | I35: 5.71% | K35: 1 | L35: 2410.56 | M35: 5 | N35: 7.04% | P35: 1 | R35: 1 | U35: 1
A36: 荆州 | B36: 7413.54 | C36: 8 | D36: 3.40% | F36: 1 | G36: 3968.79 | H36: 10 | I36: 4.55% | K36: 1 | L36: 3444.75 | M36: 3 | N36: 10.06% | P36: 1 | R36: 1 | U36: 1
A37: 黄冈 | B37: 10100.03 | C37: 3 | D37: 4.63% | F37: 1 | G37: 8182.59 | H37: 3 | I37: 9.39% | K37: 1 | L37: 1917.44 | M37: 7 | N37: 5.60% | P37: 1 | R37: 1 | U37: 1
A38: 咸宁 | B38: 7631.74 | C38: 7 | D38: 3.50% | F38: 1 | G38: 6305.94 | H38: 6 | I38: 7.24% | K38: 1 | L38: 1325.80 | M38: 11 | N38: 3.87% | P38: 1 | R38: 1 | U38: 1
A39: 随州 | B39: 2105.47 | C39: 13 | D39: 0.96% | F39: 1 | G39: 1068.83 | H39: 16 | I39: 1.23% | K39: 1 | L39: 1036.64 | M39: 12 | N39: 3.03% | P39: 1 | R39: 1 | U39: 1
A40: 恩施 | B40: 7328.74 | C40: 10 | D40: 3.36% | F40: 1 | G40: 3998.40 | H40: 8 | I40: 4.59% | K40: 1 | L40: 3330.34 | M40: 4 | N40: 9.73% | P40: 1 | R40: 1 | U40: 1
A41: 仙桃 | B41: 1479.20 | C41: 15 | D41: 0.68% | F41: 1 | G41: 1071.48 | H41: 15 | I41: 1.23% | K41: 1 | L41: 407.72 | M41: 14 | N41: 1.19% | P41: 1 | R41: 1 | U41: 1
A42: 潜江 | B42: 2660.82 | C42: 12 | D42: 1.22% | F42: 1 | G42: 2221.50 | H42: 12 | I42: 2.55% | K42: 1 | L42: 439.32 | M42: 13 | N42: 1.28% | P42: 1 | R42: 1 | U42: 1
A43: 天门 | B43: 1671.11 | C43: 14 | D43: 0.77% | F43: 1 | G43: 1344.18 | H43: 13 | I43: 1.54% | K43: 1 | L43: 326.93 | M43: 15 | N43: 0.95% | P43: 1 | R43: 1 | U43: 1
A44: 林区 | B44: 185.70 | C44: =RANK(B44,B$28:B$44) -> 17 | D44: 0.09% | F44: =RANK(E44,E$28:E$44) -> 1 | G44: 105.45 | H44: =RANK(G44,G$28:G$44) -> 17 | I44: 0.12% | K44: 1 | L44: 80.25 | M44: 17 | N44: 0.23% | P44: 1 | R44: 1 | U44: 1
